[Event "*** Titled Tuesday 3|2 Blitz"]
[Site "Chess.com"]
[Date "2015.03.03"]
[Round "7"]
[White "Bab3s"]
[Black "gumersindo"]
[Result "0-1"]
[WhiteElo "2038"]
[BlackElo "2104"]
[TimeControl "180+2"]
[EndTime "12:28:35 PST"]
[Termination "gumersindo won by resignation"]

1. e4 {[%clk 0:03:00]} 1... e5 {[%clk 0:02:56.1]} 2. Nf3 {[%clk 0:03:00.6]} 2...
Nc6 {[%clk 0:02:56.7]} 3. d4 {[%clk 0:03:01.6]} 3... exd4 {[%clk 0:02:57.2]} 4.
Bc4 {[%clk 0:03:03.1]} 4... Bc5 {[%clk 0:02:57.3]} 5. O-O {[%clk 0:03:03.3]}
5... Nf6 {[%clk 0:02:46.8]} 6. e5 {[%clk 0:03:04.2]} 6... Ng4 {[%clk 0:02:43.2]}
7. Bxf7+ {[%clk 0:02:44.2]} 7... Kxf7 {[%clk 0:02:43.5]} 8. Ng5+ {[%clk
0:02:45.4]} 8... Kg8 {[%clk 0:02:44.7]} 9. Qxg4 {[%clk 0:02:46.8]} 9... d5
{[%clk 0:02:42.9]} 10. e6 {[%clk 0:02:46.2]} 10... Qf6 {[%clk 0:02:38.6]} 11.
Re1 {[%clk 0:01:44.7]} 11... d3 {[%clk 0:02:32.6]} 12. Be3 {[%clk 0:01:41.5]}
12... Bxe3 {[%clk 0:02:30.4]} 13. Rxe3 {[%clk 0:00:54.4]} 13... Qxb2 {[%clk
0:02:25.1]} 14. h4 {[%clk 0:00:50.9]} 14... Qxa1 {[%clk 0:02:24.2]} 15. Qf5
{[%clk 0:00:32.9]} 15... Qf6 {[%clk 0:02:18.8]} 16. Qxd5 {[%clk 0:00:28.1]}
16... Ne7 {[%clk 0:02:19.4]} 17. Qd8+ {[%clk 0:00:21.4]} 17... Qf8 {[%clk
0:02:19.8]} 18. Qxc7 {[%clk 0:00:15.6]} 18... h6 {[%clk 0:02:16.5]} 19. Nf7
{[%clk 0:00:10.8]} 19... dxc2 {[%clk 0:02:16.5]} 20. Qxc2 {[%clk 0:00:08.9]}
20... Bxe6 {[%clk 0:02:10.5]} 21. Nxh8 {[%clk 0:00:09.3]} 21... Kxh8 {[%clk
0:02:07.3]} 22. Rxe6 {[%clk 0:00:10.1]} 22... Nc6 {[%clk 0:02:05.1]} 23. Qe4
{[%clk 0:00:06.6]} 23... Rd8 {[%clk 0:02:02.4]} 24. Nc3 {[%clk 0:00:05.5]} 24...
Qf7 {[%clk 0:01:57.7]} 25. Ne2 {[%clk 0:00:03.7]} 25... Rf8 {[%clk 0:01:57.8]}
26. f3 {[%clk 0:00:03.9]} 26... Qf5 {[%clk 0:01:48.4]} 27. Ng3 {[%clk
0:00:04.2]} 27... Qc5+ {[%clk 0:01:47]} 28. Kh2 {[%clk 0:00:04.9]} 28... Qb4
{[%clk 0:01:37.6]} 29. Qxb4 {[%clk 0:00:05.1]} 29... Nxb4 {[%clk 0:01:38.3]} 30.
Re7 {[%clk 0:00:06.1]} 30... Rf4 {[%clk 0:01:35.7]} 31. Kh3 {[%clk 0:00:05.9]}
31... Nxa2 {[%clk 0:01:32.1]} 32. Nh5 {[%clk 0:00:06.8]} 32... Rb4 {[%clk
0:01:30.4]} 33. Rxg7 {[%clk 0:00:06.5]} 33... Rb5 {[%clk 0:01:29.2]} 34. g4
{[%clk 0:00:03.6]} 34... Rxh5 {[%clk 0:01:29.5]} 35. Rxb7 {[%clk 0:00:05.1]}
35... Ra5 {[%clk 0:01:30.1]} 36. f4 {[%clk 0:00:05]} 36... Nc3 {[%clk
0:01:30.8]} 37. g5 {[%clk 0:00:05.8]} 37... hxg5 {[%clk 0:01:31.4]} 38. hxg5
{[%clk 0:00:07.7]} 38... Ne2 {[%clk 0:01:31.8]} 39. Kg4 {[%clk 0:00:08.2]} 39...
Ra4 {[%clk 0:01:32.1]} 40. g6 {[%clk 0:00:08.9]} 40... Nxf4 {[%clk 0:01:31.4]}
41. Kg5 {[%clk 0:00:09.5]} 41... Nd5 {[%clk 0:01:25.1]} 42. Kh6 {[%clk
0:00:07.9]} 42... Rh4+ {[%clk 0:01:25.3]} 43. Kg5 {[%clk 0:00:08.7]} 43... Ra4
{[%clk 0:01:24.5]} 44. Kh6 {[%clk 0:00:09.6]} 44... Rh4+ {[%clk 0:01:25.3]} 45.
Kg5 {[%clk 0:00:10.7]} 45... Rh1 {[%clk 0:01:26.7]} 46. Rxa7 {[%clk 0:00:11.1]}
46... Rf1 {[%clk 0:01:22.4]} 47. Kh6 {[%clk 0:00:11.2]} 47... Rh1+ {[%clk
0:01:23.3]} 48. Kg5 {[%clk 0:00:12.6]} 48... Kg8 {[%clk 0:01:23.4]} 49. Rd7
{[%clk 0:00:12]} 49... Nb6 {[%clk 0:01:21.3]} 50. Rb7 {[%clk 0:00:12.3]} 50...
Nc4 {[%clk 0:01:20.7]} 51. Kf6 {[%clk 0:00:11.6]} 51... Rf1+ {[%clk 0:01:20.9]}
52. Kg5 {[%clk 0:00:12.9]} 52... Nd6 {[%clk 0:01:19.6]} 53. Rd7 {[%clk 0:00:11]}
53... Ne4+ {[%clk 0:01:19.3]} 54. Kh4 {[%clk 0:00:07.9]} 54... Rh1+ {[%clk
0:01:18.2]} 55. Kg4 {[%clk 0:00:08.7]} 55... Nf6+ {[%clk 0:01:19.7]} 0-1

[Event "*** Titled Tuesday 3|2 Blitz"]
[Site "Chess.com"]
[Date "2015.03.03"]
[Round "7"]
[White "biostatistician"]
[Black "patzerplay"]
[Result "0-1"]
[WhiteElo "2292"]
[BlackElo "2179"]
[TimeControl "180+2"]
[EndTime "12:28:59 PST"]
[Termination "patzerplay won by checkmate"]

1. d4 {[%clk 0:03:00]} 1... Nf6 {[%clk 0:02:58.6]} 2. Nf3 {[%clk 0:03:00.7]}
2... g6 {[%clk 0:02:59.9]} 3. c4 {[%clk 0:03:00.2]} 3... Bg7 {[%clk 0:03:00.6]}
4. Nc3 {[%clk 0:03:01.6]} 4... d5 {[%clk 0:03:01.8]} 5. cxd5 {[%clk 0:03:03.5]}
5... Nxd5 {[%clk 0:03:02.5]} 6. e4 {[%clk 0:03:05.1]} 6... Nxc3 {[%clk
0:03:03.8]} 7. bxc3 {[%clk 0:03:07]} 7... O-O {[%clk 0:03:04.9]} 8. Be2 {[%clk
0:03:08.1]} 8... c5 {[%clk 0:03:05.9]} 9. O-O {[%clk 0:03:09.6]} 9... Nc6 {[%clk
0:03:03.4]} 10. Be3 {[%clk 0:03:10.5]} 10... Qc7 {[%clk 0:03:02.1]} 11. Qd2
{[%clk 0:03:07.2]} 11... Rd8 {[%clk 0:03:02.6]} 12. Rad1 {[%clk 0:03:04.3]}
12... Bg4 {[%clk 0:02:55.5]} 13. d5 {[%clk 0:03:00.6]} 13... Bxf3 {[%clk
0:02:25.3]} 14. Bxf3 {[%clk 0:03:02.5]} 14... c4 {[%clk 0:02:17.3]} 15. Be2
{[%clk 0:02:56]} 15... Na5 {[%clk 0:02:16.9]} 16. f4 {[%clk 0:02:49]} 16... b6
{[%clk 0:02:16.9]} 17. e5 {[%clk 0:02:47.3]} 17... Nb7 {[%clk 0:02:17.8]} 18.
Bf3 {[%clk 0:02:44.8]} 18... Rac8 {[%clk 0:02:12.5]} 19. Qd4 {[%clk 0:02:33.8]}
19... e6 {[%clk 0:01:34.6]} 20. d6 {[%clk 0:02:32.5]} 20... Nxd6 {[%clk
0:01:34.5]} 21. Bf2 {[%clk 0:01:47.5]} 21... Nb5 {[%clk 0:01:24.2]} 22. Qe3
{[%clk 0:01:46.2]} 22... Bf8 {[%clk 0:01:16.9]} 23. a4 {[%clk 0:01:41.1]} 23...
Na3 {[%clk 0:01:08.4]} 24. Qe2 {[%clk 0:01:18.2]} 24... Rxd1 {[%clk 0:00:57.9]}
25. Rxd1 {[%clk 0:01:18.7]} 25... Rd8 {[%clk 0:00:59.2]} 26. Bd4 {[%clk
0:01:12.7]} 26... Qd7 {[%clk 0:00:53.1]} 27. a5 {[%clk 0:00:58.5]} 27... Nb5
{[%clk 0:00:26.6]} 28. axb6 {[%clk 0:00:57.7]} 28... axb6 {[%clk 0:00:16.2]} 29.
Kf1 {[%clk 0:00:36.7]} 29... Qc7 {[%clk 0:00:12.5]} 30. Qf2 {[%clk 0:00:28.5]}
30... Nxd4 {[%clk 0:00:13.1]} 31. Rxd4 {[%clk 0:00:29]} 31... Bc5 {[%clk
0:00:10.1]} 32. Rxd8+ {[%clk 0:00:28.8]} 32... Qxd8 {[%clk 0:00:10.7]} 33. Qe2
{[%clk 0:00:30.2]} 33... b5 {[%clk 0:00:10.2]} 34. g3 {[%clk 0:00:30.1]} 34...
Qa5 {[%clk 0:00:10.8]} 35. Qb2 {[%clk 0:00:29]} 35... Qb6 {[%clk 0:00:08.8]} 36.
Kg2 {[%clk 0:00:29]} 36... Be7 {[%clk 0:00:09.9]} 37. Ba8 {[%clk 0:00:25.8]}
37... b4 {[%clk 0:00:10.5]} 38. cxb4 {[%clk 0:00:26.7]} 38... Bxb4 {[%clk
0:00:11.4]} 39. Be4 {[%clk 0:00:27]} 39... Qc5 {[%clk 0:00:12.1]} 40. Qc2 {[%clk
0:00:28]} 40... Qd4 {[%clk 0:00:12.9]} 41. h4 {[%clk 0:00:29.3]} 41... Kg7
{[%clk 0:00:12.9]} 42. Kf3 {[%clk 0:00:30.5]} 42... Bc5 {[%clk 0:00:11.5]} 43.
Kg2 {[%clk 0:00:27]} 43... Qg1+ {[%clk 0:00:12.4]} 44. Kh3 {[%clk 0:00:25.6]}
44... Bf2 {[%clk 0:00:10.4]} 45. Bg2 {[%clk 0:00:26.3]} 45... Qe1 {[%clk
0:00:06.8]} 46. Qxc4 {[%clk 0:00:22.9]} 46... Bxg3 {[%clk 0:00:08.1]} 47. h5
{[%clk 0:00:24.5]} 47... Bh4 {[%clk 0:00:08]} 48. Qd3 {[%clk 0:00:23.1]} 48...
Be7 {[%clk 0:00:08.6]} 49. hxg6 {[%clk 0:00:23.6]} 49... Qh4# {[%clk 0:00:09.5]}
0-1

[Event "*** Titled Tuesday 3|2 Blitz"]
[Site "Chess.com"]
[Date "2015.03.03"]
[Round "7"]
[White "MattyDPerrine"]
[Black "1stSecond"]
[Result "0-1"]
[WhiteElo "2187"]
[BlackElo "2363"]
[TimeControl "180+2"]
[EndTime "12:29:35 PST"]
[Termination "1stSecond won on time"]

1. d4 {[%clk 0:02:47.8]} 1... Nf6 {[%clk 0:02:58]} 2. c4 {[%clk 0:02:48.7]} 2...
g6 {[%clk 0:02:59.1]} 3. Nf3 {[%clk 0:02:49.9]} 3... d5 {[%clk 0:03:01]} 4. g3
{[%clk 0:02:51]} 4... Bg7 {[%clk 0:03:01.6]} 5. Bg2 {[%clk 0:02:52.1]} 5... O-O
{[%clk 0:03:01.8]} 6. O-O {[%clk 0:02:53.2]} 6... c6 {[%clk 0:02:59.7]} 7. Nbd2
{[%clk 0:02:54.2]} 7... Bf5 {[%clk 0:02:59.7]} 8. b3 {[%clk 0:02:55.3]} 8...
Nbd7 {[%clk 0:02:59.4]} 9. Bb2 {[%clk 0:02:56]} 9... Qa5 {[%clk 0:02:58.9]} 10.
Qc1 {[%clk 0:02:32.2]} 10... Ne4 {[%clk 0:02:56.7]} 11. Rd1 {[%clk 0:02:26.1]}
11... Rfc8 {[%clk 0:02:55]} 12. Nh4 {[%clk 0:02:18.5]} 12... Nxd2 {[%clk
0:02:47.2]} 13. Nxf5 {[%clk 0:02:15]} 13... gxf5 {[%clk 0:02:41.2]} 14. Qxd2
{[%clk 0:01:15.8]} 14... Qxd2 {[%clk 0:02:41.2]} 15. Rxd2 {[%clk 0:01:17.1]}
15... e6 {[%clk 0:02:42.3]} 16. Rc1 {[%clk 0:01:11.7]} 16... Bh6 {[%clk
0:02:22.6]} 17. e3 {[%clk 0:01:11.8]} 17... Bf8 {[%clk 0:02:23.1]} 18. cxd5
{[%clk 0:01:11.9]} 18... cxd5 {[%clk 0:02:23.1]} 19. Rdc2 {[%clk 0:01:13.1]}
19... Nb6 {[%clk 0:02:24.5]} 20. a4 {[%clk 0:00:44.8]} 20... Rxc2 {[%clk
0:02:23.2]} 21. Rxc2 {[%clk 0:00:45.7]} 21... Rc8 {[%clk 0:02:24.2]} 22. Rxc8
{[%clk 0:00:37.6]} 22... Nxc8 {[%clk 0:02:24.2]} 23. Kf1 {[%clk 0:00:38.2]}
23... Bb4 {[%clk 0:02:20.4]} 24. Ke2 {[%clk 0:00:38.7]} 24... b6 {[%clk
0:02:20.7]} 25. Kd3 {[%clk 0:00:34.2]} 25... a5 {[%clk 0:02:19.9]} 26. f3 {[%clk
0:00:27]} 26... Nd6 {[%clk 0:02:17.7]} 27. h3 {[%clk 0:00:20.5]} 27... h5 {[%clk
0:02:16.7]} 28. Bc3 {[%clk 0:00:19.9]} 28... Bxc3 {[%clk 0:02:14.5]} 29. Kxc3
{[%clk 0:00:21.8]} 29... Kg7 {[%clk 0:02:14.7]} 30. f4 {[%clk 0:00:20.7]} 30...
h4 {[%clk 0:02:13.3]} 31. g4 {[%clk 0:00:17.6]} 31... fxg4 {[%clk 0:02:09.5]}
32. hxg4 {[%clk 0:00:19.5]} 32... f5 {[%clk 0:02:08.6]} 33. gxf5 {[%clk
0:00:15.6]} 33... exf5 {[%clk 0:02:06.9]} 34. Kd3 {[%clk 0:00:12]} 34... Ne4
{[%clk 0:02:03.2]} 35. Ke2 {[%clk 0:00:12.9]} 35... Kf6 {[%clk 0:01:57.6]} 36.
Bh3 {[%clk 0:00:14.3]} 36... Ke6 {[%clk 0:01:57.2]} 37. Bg2 {[%clk 0:00:13.3]}
37... Nf6 {[%clk 0:01:56.4]} 38. Bh3 {[%clk 0:00:14.3]} 38... Ne8 {[%clk
0:01:52.9]} 39. Bg2 {[%clk 0:00:15]} 39... Nd6 {[%clk 0:01:53.9]} 40. Bh3 {[%clk
0:00:13]} 40... b5 {[%clk 0:01:55.2]} 41. axb5 {[%clk 0:00:11.9]} 41... Nxb5
{[%clk 0:01:57.1]} 42. Bg2 {[%clk 0:00:13.4]} 42... Nc3+ {[%clk 0:01:57.6]} 43.
Kd3 {[%clk 0:00:13.8]} 43... Ne4 {[%clk 0:01:58.2]} 44. Ke2 {[%clk 0:00:14.9]}
44... Kd6 {[%clk 0:01:58.2]} 45. Bxe4 {[%clk 0:00:07.2]} 45... dxe4 {[%clk
0:01:58.2]} 46. Kf2 {[%clk 0:00:07.3]} 46... Kc6 {[%clk 0:01:59.6]} 47. Kg2
{[%clk 0:00:08.6]} 47... Kb5 {[%clk 0:02:01.5]} 48. Kh3 {[%clk 0:00:09.8]} 48...
Kb4 {[%clk 0:02:02.9]} 49. Kxh4 {[%clk 0:00:11]} 49... Kxb3 {[%clk 0:02:03.5]}
50. d5 {[%clk 0:00:12.5]} 50... a4 {[%clk 0:02:05.4]} 51. d6 {[%clk 0:00:14.4]}
51... a3 {[%clk 0:02:07.3]} 52. d7 {[%clk 0:00:16.3]} 52... a2 {[%clk
0:02:09.2]} 53. d8=Q {[%clk 0:00:17.8]} 53... a1=Q {[%clk 0:02:11.1]} 54. Qd5+
{[%clk 0:00:19.1]} 54... Kc2 {[%clk 0:02:11.8]} 55. Qc5+ {[%clk 0:00:20.1]}
55... Kd3 {[%clk 0:02:12.4]} 56. Qxf5 {[%clk 0:00:21.6]} 56... Kxe3 {[%clk
0:02:08.9]} 57. Qh3+ {[%clk 0:00:21.1]} 57... Kxf4 {[%clk 0:02:09.2]} 58. Qg3+
{[%clk 0:00:22.6]} 58... Kf5 {[%clk 0:02:10]} 59. Qg5+ {[%clk 0:00:24.2]} 59...
Ke6 {[%clk 0:02:10.8]} 60. Qe3 {[%clk 0:00:21.7]} 60... Kd5 {[%clk 0:02:04.2]}
61. Qb3+ {[%clk 0:00:14.3]} 61... Kd4 {[%clk 0:02:04.8]} 62. Qb6+ {[%clk
0:00:14.6]} 62... Kd3 {[%clk 0:02:06.1]} 63. Qb5+ {[%clk 0:00:15.7]} 63... Ke3
{[%clk 0:02:07.5]} 64. Qb3+ {[%clk 0:00:15.8]} 64... Kf2 {[%clk 0:02:06.9]} 65.
Qg3+ {[%clk 0:00:15.6]} 65... Ke2 {[%clk 0:02:07.4]} 66. Qg2+ {[%clk 0:00:16]}
66... Kd3 {[%clk 0:02:07.9]} 67. Qg3+ {[%clk 0:00:10.5]} 67... e3 {[%clk
0:02:09]} 68. Qg6+ {[%clk 0:00:11.5]} 68... Kd2 {[%clk 0:02:09.8]} 69. Qd6+
{[%clk 0:00:09.2]} 69... Ke2 {[%clk 0:02:11.3]} 70. Qh2+ {[%clk 0:00:09.3]}
70... Kd3 {[%clk 0:02:08.1]} 71. Qc7 {[%clk 0:00:05]} 71... e2 {[%clk
0:02:02.4]} 72. Qh7+ {[%clk 0:00:03.5]} 72... Kd2 {[%clk 0:01:59]} 73. Qd7+
{[%clk 0:00:04.3]} 73... Ke1 {[%clk 0:01:57.9]} 74. Kg3 {[%clk 0:00:02.9]} 74...
Qe5+ {[%clk 0:01:54.8]} 75. Kg2 {[%clk 0:00:02.7]} 75... Qg5+ {[%clk 0:01:55.5]}
0-1

[Event "*** Titled Tuesday 3|2 Blitz"]
[Site "Chess.com"]
[Date "2015.03.03"]
[Round "7"]
[White "BjarkeSahl"]
[Black "MITerryble"]
[Result "1-0"]
[WhiteElo "2108"]
[BlackElo "2477"]
[TimeControl "180+2"]
[EndTime "12:30:14 PST"]
[Termination "BjarkeSahl won by resignation"]

1. e4 {[%clk 0:03:00]} 1... e6 {[%clk 0:02:57.3]} 2. d4 {[%clk 0:03:00.2]} 2...
d5 {[%clk 0:02:58.9]} 3. Nc3 {[%clk 0:03:01.2]} 3... Nf6 {[%clk 0:03:00]} 4. Bg5
{[%clk 0:03:00.6]} 4... Bb4 {[%clk 0:03:00.3]} 5. e5 {[%clk 0:02:59.5]} 5... h6
{[%clk 0:03:01.4]} 6. Bd2 {[%clk 0:03:00.2]} 6... Bxc3 {[%clk 0:03:01.5]} 7.
bxc3 {[%clk 0:03:01.4]} 7... Ne4 {[%clk 0:03:03.4]} 8. Ne2 {[%clk 0:03:01.8]}
8... c5 {[%clk 0:03:03.4]} 9. Ng3 {[%clk 0:03:02.6]} 9... Nxd2 {[%clk
0:03:03.7]} 10. Qxd2 {[%clk 0:03:03.2]} 10... Qa5 {[%clk 0:03:04.6]} 11. Nh5
{[%clk 0:03:00.6]} 11... O-O {[%clk 0:03:05.4]} 12. h4 {[%clk 0:03:01.5]} 12...
cxd4 {[%clk 0:03:00.3]} 13. cxd4 {[%clk 0:03:02.1]} 13... Qxd2+ {[%clk
0:03:00.3]} 14. Kxd2 {[%clk 0:03:03.3]} 14... Nc6 {[%clk 0:03:02.2]} 15. c3
{[%clk 0:03:04.1]} 15... Bd7 {[%clk 0:02:47.9]} 16. Rh3 {[%clk 0:03:04.5]} 16...
Kh8 {[%clk 0:02:49.3]} 17. Rg3 {[%clk 0:02:58.3]} 17... Rg8 {[%clk 0:02:50.4]}
18. Rf3 {[%clk 0:02:47.5]} 18... Be8 {[%clk 0:02:50.6]} 19. g4 {[%clk
0:02:42.9]} 19... Ne7 {[%clk 0:02:38.2]} 20. g5 {[%clk 0:02:22.4]} 20... Nf5
{[%clk 0:02:36.9]} 21. gxh6 {[%clk 0:02:13.4]} 21... Nxh6 {[%clk 0:02:32.6]} 22.
Nf4 {[%clk 0:02:05]} 22... Rc8 {[%clk 0:01:45]} 23. Bd3 {[%clk 0:02:04.9]} 23...
Rc7 {[%clk 0:01:46.1]} 24. Rg1 {[%clk 0:02:01.6]} 24... Re7 {[%clk 0:01:42.9]}
25. Rfg3 {[%clk 0:01:49.7]} 25... Rc7 {[%clk 0:01:34.4]} 26. Nh3 {[%clk
0:01:34.1]} 26... Re7 {[%clk 0:01:26.8]} 27. f4 {[%clk 0:01:34.7]} 27... f6
{[%clk 0:01:21.2]} 28. Nf2 {[%clk 0:01:24.2]} 28... Bh5 {[%clk 0:01:15.2]} 29.
Bg6 {[%clk 0:01:05.1]} 29... Bxg6 {[%clk 0:01:11.8]} 30. Rxg6 {[%clk 0:01:05.4]}
30... Rf7 {[%clk 0:01:00.1]} 31. Ng4 {[%clk 0:00:52.3]} 31... Nxg4 {[%clk
0:00:26.9]} 32. R1xg4 {[%clk 0:00:53]} 32... Kh7 {[%clk 0:00:20.7]} 33. h5
{[%clk 0:00:50.7]} 33... f5 {[%clk 0:00:14.8]} 34. Rg3 {[%clk 0:00:42]} 34...
Re8 {[%clk 0:00:16.3]} 35. Rg1 {[%clk 0:00:34.1]} 35... Ree7 {[%clk 0:00:17.3]}
36. Rb1 {[%clk 0:00:29.4]} 36... b6 {[%clk 0:00:18.3]} 37. Rb4 {[%clk 0:00:29]}
37... Rf8 {[%clk 0:00:17.9]} 38. c4 {[%clk 0:00:26.8]} 38... dxc4 {[%clk
0:00:12.9]} 39. Rxc4 {[%clk 0:00:27]} 39... Rfe8 {[%clk 0:00:14.3]} 40. Rc6
{[%clk 0:00:27.2]} 40... Kg8 {[%clk 0:00:11.2]} 41. h6 {[%clk 0:00:23.7]} 41...
Kh7 {[%clk 0:00:12.4]} 42. Rxg7+ {[%clk 0:00:25]} 42... Rxg7 {[%clk 0:00:13.1]}
43. hxg7 {[%clk 0:00:26.3]} 43... Kxg7 {[%clk 0:00:15]} 44. Rc7+ {[%clk
0:00:27.6]} 44... Kg6 {[%clk 0:00:16.3]} 45. Rxa7 {[%clk 0:00:28.9]} 45... Kh5
{[%clk 0:00:16.3]} 46. Rb7 {[%clk 0:00:29.3]} 46... Kg4 {[%clk 0:00:16.9]} 47.
Ke3 {[%clk 0:00:30.7]} 47... Ra8 {[%clk 0:00:16.8]} 48. Rg7+ {[%clk 0:00:31.9]}
48... Kh4 {[%clk 0:00:18]} 49. Rg6 {[%clk 0:00:29.4]} 49... Ra3+ {[%clk
0:00:17.8]} 50. Kd2 {[%clk 0:00:30]} 50... Rxa2+ {[%clk 0:00:18.1]} 51. Kc3
{[%clk 0:00:31.6]} 51... Ra3+ {[%clk 0:00:12]} 52. Kb4 {[%clk 0:00:27.5]} 52...
Rf3 {[%clk 0:00:06.8]} 53. Rxe6 {[%clk 0:00:27.7]} 53... Rxf4 {[%clk 0:00:08.2]}
54. Kc4 {[%clk 0:00:28.2]} 54... Re4 {[%clk 0:00:08.4]} 55. Rxb6 {[%clk
0:00:26.2]} 55... f4 {[%clk 0:00:09.7]} 56. Kd5 {[%clk 0:00:27.7]} 56... Re1
{[%clk 0:00:10.1]} 57. Rf6 {[%clk 0:00:28.3]} 57... Kg5 {[%clk 0:00:10.8]} 58.
Rf8 {[%clk 0:00:28.8]} 58... Kg4 {[%clk 0:00:12]} 59. e6 {[%clk 0:00:29.7]}
59... f3 {[%clk 0:00:13.4]} 60. Kd6 {[%clk 0:00:29.5]} 60... Re4 {[%clk
0:00:11.8]} 61. d5 {[%clk 0:00:30.1]} 61... Kg3 {[%clk 0:00:12.6]} 62. e7 {[%clk
0:00:30.9]} 62... f2 {[%clk 0:00:14]} 63. Rxf2 {[%clk 0:00:27.8]} 63... Kxf2
{[%clk 0:00:14.3]} 64. Kd7 {[%clk 0:00:29.3]} 1-0

[Event "*** Titled Tuesday 3|2 Blitz"]
[Site "Chess.com"]
[Date "2015.03.03"]
[Round "7"]
[White "EltajSafarli"]
[Black "GeorgMeier"]
[Result "1/2-1/2"]
[WhiteElo "2683"]
[BlackElo "2738"]
[TimeControl "180+2"]
[EndTime "12:30:57 PST"]
[Termination "Game drawn by agreement"]

1. e4 {[%clk 0:02:58]} 1... e6 {[%clk 0:02:58.8]} 2. d4 {[%clk 0:02:55.9]} 2...
d5 {[%clk 0:03:00.2]} 3. Nd2 {[%clk 0:02:57.8]} 3... dxe4 {[%clk 0:03:01.7]} 4.
Nxe4 {[%clk 0:02:59.7]} 4... Nd7 {[%clk 0:03:03.6]} 5. Bd3 {[%clk 0:02:59.9]}
5... Ngf6 {[%clk 0:03:04.6]} 6. Qe2 {[%clk 0:03:01.3]} 6... c5 {[%clk
0:03:05.6]} 7. dxc5 {[%clk 0:02:59.7]} 7... Nxe4 {[%clk 0:03:04.5]} 8. Bxe4
{[%clk 0:02:58.8]} 8... Nxc5 {[%clk 0:03:05.5]} 9. Nf3 {[%clk 0:02:59.8]} 9...
Nxe4 {[%clk 0:03:02]} 10. Qxe4 {[%clk 0:03:01.7]} 10... Qd5 {[%clk 0:03:03.4]}
11. Qxd5 {[%clk 0:02:58.3]} 11... exd5 {[%clk 0:03:05.3]} 12. O-O {[%clk
0:03:00.2]} 12... f6 {[%clk 0:02:51.6]} 13. Rd1 {[%clk 0:02:54]} 13... Be6
{[%clk 0:02:47.1]} 14. Nd4 {[%clk 0:02:47]} 14... Bg4 {[%clk 0:02:44.8]} 15. f3
{[%clk 0:02:47.2]} 15... Bd7 {[%clk 0:02:45.6]} 16. Be3 {[%clk 0:02:44.6]} 16...
Kf7 {[%clk 0:02:45.8]} 17. Ne2 {[%clk 0:02:43.3]} 17... Bc6 {[%clk 0:01:53.2]}
18. Nc3 {[%clk 0:02:44.2]} 18... Bd6 {[%clk 0:01:44.1]} 19. Nxd5 {[%clk
0:02:43]} 19... Rhe8 {[%clk 0:01:44.6]} 20. Kf2 {[%clk 0:02:42.5]} 20... Bxh2
{[%clk 0:01:18.6]} 21. Nb4 {[%clk 0:02:30.7]} 21... Be5 {[%clk 0:01:01.1]} 22.
Bd4 {[%clk 0:02:24.7]} 22... Rac8 {[%clk 0:00:54.7]} 23. c4 {[%clk 0:02:23.7]}
23... h5 {[%clk 0:00:46]} 24. Bxe5 {[%clk 0:02:17.5]} 24... Rxe5 {[%clk
0:00:47.9]} 25. Rac1 {[%clk 0:02:19.4]} 25... g5 {[%clk 0:00:45.7]} 26. Nd3
{[%clk 0:02:15.5]} 26... Re7 {[%clk 0:00:45.4]} 27. Nb4 {[%clk 0:02:13.4]} 27...
h4 {[%clk 0:00:42.3]} 28. Rd6 {[%clk 0:02:11.8]} 28... Re6 {[%clk 0:00:42.2]}
29. Rd4 {[%clk 0:02:12.1]} 29... Rce8 {[%clk 0:00:42.4]} 30. Rc2 {[%clk
0:02:10.5]} 30... a5 {[%clk 0:00:43]} 31. Nxc6 {[%clk 0:02:01.9]} 31... bxc6
{[%clk 0:00:44.8]} 32. Rcd2 {[%clk 0:02:00.7]} 32... f5 {[%clk 0:00:36.7]} 33.
Rd7+ {[%clk 0:01:57.6]} 33... R8e7 {[%clk 0:00:35.5]} 34. b3 {[%clk 0:01:47.5]}
34... Kf6 {[%clk 0:00:34.7]} 35. Rd8 {[%clk 0:01:46.3]} 35... Re8 {[%clk
0:00:32.9]} 36. R8d4 {[%clk 0:01:43.8]} 36... R8e7 {[%clk 0:00:33.1]} 37. c5
{[%clk 0:01:38.7]} 37... Re5 {[%clk 0:00:33.5]} 38. Rc2 {[%clk 0:01:34.6]} 38...
Rb7 {[%clk 0:00:31.7]} 39. f4 {[%clk 0:01:32.3]} 39... gxf4 {[%clk 0:00:30.2]}
40. Rxf4 {[%clk 0:01:34.2]} 40... Kg5 {[%clk 0:00:31.7]} 41. Kf3 {[%clk
0:01:30.7]} 41... Rb5 {[%clk 0:00:30.1]} 42. Rfc4 {[%clk 0:01:27.6]} 42... Rd5
{[%clk 0:00:30.7]} 43. Kf2 {[%clk 0:01:25.6]} 43... Re5 {[%clk 0:00:31.7]} 44.
Kg1 {[%clk 0:01:26.4]} 44... Re4 {[%clk 0:00:26.3]} 45. R4c3 {[%clk 0:01:23.5]}
45... a4 {[%clk 0:00:25.8]} 46. Rd3 {[%clk 0:01:22.1]} 46... axb3 {[%clk
0:00:22.9]} 47. axb3 {[%clk 0:01:22.8]} 47... Re5 {[%clk 0:00:23.9]} 48. Rdc3
{[%clk 0:01:22.1]} 48... Re4 {[%clk 0:00:24.9]} 49. Kh2 {[%clk 0:01:22.7]} 49...
Reb4 {[%clk 0:00:25.2]} 50. Rd3 {[%clk 0:01:19.2]} 50... Rxb3 {[%clk 0:00:25]}
51. Rd6 {[%clk 0:01:20.6]} 51... Rb2 {[%clk 0:00:25.8]} 52. Rxb2 {[%clk
0:01:16.9]} 52... Rxb2 {[%clk 0:00:27.7]} 53. Rxc6 {[%clk 0:01:18.8]} 53... f4
{[%clk 0:00:28.3]} 54. Kg1 {[%clk 0:01:15.1]} 54... Rc2 {[%clk 0:00:21.6]} 55.
Rc8 {[%clk 0:01:15.1]} 55... Kf5 {[%clk 0:00:21.5]} 56. c6 {[%clk 0:01:11.7]}
56... Ke6 {[%clk 0:00:20.2]} 57. c7 {[%clk 0:01:05.5]} 57... Kd7 {[%clk
0:00:21.1]} 58. Rf8 {[%clk 0:01:06.9]} 58... Rxc7 {[%clk 0:00:16.8]} 59. Rxf4
{[%clk 0:00:50.4]} 59... Ke6 {[%clk 0:00:18]} 60. Rxh4 {[%clk 0:00:45.6]} 60...
Kf5 {[%clk 0:00:18.6]} 61. Kh2 {[%clk 0:00:41]} 61... Kg5 {[%clk 0:00:18.9]} 62.
Ra4 {[%clk 0:00:41.8]} 62... Kg6 {[%clk 0:00:19.7]} 63. Kh3 {[%clk 0:00:42.4]}
63... Rc6 {[%clk 0:00:20.8]} 64. g3 {[%clk 0:00:43.5]} 64... Rb6 {[%clk
0:00:22.1]} 65. Kh4 {[%clk 0:00:44.5]} 65... Rc6 {[%clk 0:00:23.6]} 66. Kg4
{[%clk 0:00:45.6]} 66... Rb6 {[%clk 0:00:24.9]} 1/2-1/2